Cogmind - Beta 12 @@@ ROGUE MODE // 2023.03.11 @ 23:23:28 Player: Holy_Ghost Result: Self-destructed Performance ------------- Evolutions (0) 0 Regions Visited (4) 800 Robots Destroyed (18) 90 Value Destroyed (498) 498 Prototype IDs (5) 100 Alien Tech Used (0) 0 Bonus (300) 300 TOTAL SCORE: 1788 Bonus ------- Aligned with FarCom 300 Cogmind --------- Core Integrity 197/250 Matter 270/300 Energy 250/250 System Corruption 0% Temperature Cool (0) Movement Rolling (105) Ox1 Location -9/Mines Parts ------- > --- POWER (1) -------- Ion Engine > --- PROPULSION (2) --- Wheel Compact Wheel > --- UTILITY (2) ------ Large Storage Unit > --- WEAPON (2) ------- EM Shotgun > --- INVENTORY (15) --- Light Ion Engine Aluminum Leg Aluminum Leg Experimental Sensor Array Medium Laser Latent Energy Streamer Peak State ------------ > --- POWER ------------ Ion Engine > --- PROPULSION ------- Wheel Compact Wheel > --- UTILITY ---------- Large Storage Unit Trap Reconfigurator > --- WEAPON ----------- EM Shotgun Latent Energy Streamer > --- INVENTORY -------- Light Ion Engine Aluminum Leg Aluminum Leg Experimental Sensor Array Medium Laser [Rating: 26] Favorites ----------- Power Ion Engine Engine Ion Engine Propulsion Light Treads Treads Light Treads Leg Aluminum Leg Wheel Wheel Utility Large Storage Unit Device Trap Reconfigurator Storage Large Storage Unit Processor Transport Network Coupler Weapon EM Shotgun Energy Gun EM Shotgun Energy Cannon Latent Energy Streamer Ballistic Gun Light Assault Rifle Build | -11 -10 -10 -10 -9 ------- Run | Jun Mat Min Exi Min Slots Evolved . | . . . . . Power . | . . . . . Propulsion . | . . . . . Utility . | . . . . . Weapon . | . . . . . Parts Attached 13 | . 6 5 2 . Power . | . . . . . Engine . | . . . . . Core . | . . . . . Reactor . | . . . . . Propulsion 5 | . 2 3 . . Treads 2 | . 2 . . . Leg . | . . . . . Wheel 3 | . . 3 . . Hover . | . . . . . Flight . | . . . . . Utility 3 | . 2 . 1 . Device 1 | . . . 1 . Storage 1 | . 1 . . . Processor 1 | . 1 . . . Hackware . | . . . . . Protection . | . . . . . Artifact . | . . . . . Weapon 5 | . 2 2 1 . Energy Gun 4 | . 2 2 . . Energy Cannon 1 | . . . 1 . Ballistic Gun . | . . . . . Ballistic Cannon . | . . . . . Launcher . | . . . . . Special Weapon . | . . . . . Impact Weapon . | . . . . . Slashing Weapon . | . . . . . Piercing Weapon . | . . . . . Special Melee Weapon . | . . . . . Unidentified Prototypes 3 | . . . 3 . Parts Lost 3 | . . 3 . . Power . | . . . . . Propulsion 1 | . . 1 . . Utility . | . . . . . Weapon 2 | . . 2 . . Highest Loss Streak 2 | . . 2 . . To Critical Strikes . | . . . . . Average Slot Usage (%) 95 | . 98 94 96 79 Engine 14 | . 14 14 14 14 Treads 14 | . 27 22 . . Wheel 11 | . . 1 28 28 Storage 14 | . 14 14 14 14 Processor 12 | . 13 14 11 . Energy Gun 25 | . 20 27 25 14 Energy Cannon 1 | . . . 2 8 Ballistic Gun 1 | . 7 . . . Naked Turns . | . . . . . Heaviest Build 39 | 13 31 31 39 38 Greatest Support 40 | 20 40 40 26 26 Greatest Overweight (x) 1 | . . 1 1 1 Average Overweight (x) . | . . . 1 1 Largest Inventory Capacity 15 | . 15 15 15 15 Average Capacity 14 | . 14 15 15 15 Most Carried 8 | . 8 8 5 6 Average Carried 6 | . 6 6 5 5 Final Capacity 15 | 8 15 15 15 15 Final Carried 8 | 6 8 5 5 6 Class Distribution -------------------- 100% | Mutant Dominant Class ---------------- Mutant | -10/Materials Mutant | -10/Mines Mutant | -10/Exiles Mutant | -9/Mines Resources | -11 -10 -10 -10 -9 ----------- Run | Jun Mat Min Exi Min Matter Collected 323 | 200 73 50 . . Remotely . | . . . . . Salvage Created 732 | . 347 385 . . Parts 39 | . 25 14 . . Haulers Intercepted 1 | . 1 . . . Recyclers Shooed . | . . . . . Parts Field Recycled . | . . . . . Retrieved Matter . | . . . . . Parts Self-Destructed . | . . . . . Prevented . | . . . . . Kills | -11 -10 -10 -10 -9 ------- Run | Jun Mat Min Exi Min Combat Hostiles Destroyed 14 | . 8 6 . . Guns 11 | . 7 4 . . AOE 2 | . 1 1 . . Classes Destroyed 6 | . 5 1 . . Builder 1 | . 1 . . . Hauler 1 | . 1 . . . Recycler 1 | . . 1 . . Watcher 1 | . 1 . . . Swarmer 3 | . 3 . . . Grunt 11 | . 5 6 . . Best Kill Streak 3 | . 3 2 . . Combat Bots Only 3 | . 3 2 . . Max Kills in Single Turn 3 | . 3 1 . . Gunslinging . | . . . . . Exploded 1 | . 1 1 . . Melee . | . . . . . Uniques/NPCs Destroyed . | . . . . . Combat | -11 -10 -10 -10 -9 -------- Run | Jun Mat Min Exi Min Damage Taken 487 | . 261 226 . . Core 53 | . 12 41 . . Absorbed by Shields . | . . . . . Core Remaining (%) 100 | 100 . . . . Volleys Fired 37 | . 20 17 . . Largest 2 | . 2 2 . . Hottest 90 | . 90 90 . . Shots Fired 73 | . 40 33 . . Gun 73 | . 40 33 . . Cannon . | . . . . . Launcher . | . . . . . Special . | . . . . . Kinetic 13 | . 13 . . . Thermal 13 | . 13 . . . Explosive . | . . . . . Electromagnetic 47 | . 14 33 . . Robot Hit Streak 12 | . 12 8 . . Robot Miss Streak 5 | . 5 3 . . Penetration Max . | . . . . . Secondary Targets 2 | . 2 . . . Max Gunslinging Chain 1 | . 1 . . . Shots Hit Robots 55 | . 27 28 . . Core Hits 39 | . 21 18 . . Critical Kills . | . . . . . Critical Parts Destroyed . | . . . . . Critical Strikes 1 | . 1 . . . Burn 1 | . 1 . . . Melee Attacks . | . . . . . Impact . | . . . . . Slashing . | . . . . . Piercing . | . . . . . Sneak Attacks . | . . . . . Combat Hostiles . | . . . . . Follow-up Attacks . | . . . . . Damage Inflicted 828 | . 339 489 . . Guns 694 | . 287 407 . . Cannons . | . . . . . Explosions 131 | . 52 79 . . Melee . | . . . . . Ramming 3 | . . 3 . . Kinetic 55 | . 55 . . . Thermal 265 | . 186 79 . . Explosive . | . . . . . Electromagnetic 505 | . 98 407 . . Impact . | . . . . . Slashing . | . . . . . Piercing . | . . . . . Highest Corruption . | . . . . . Average Corruption . | . . . . . Corruption Purged . | . . . . . Corruption Blocked . | . . . . . Overload Shots . | . . . . . Overflow Damage 6 | . . 6 . . Projectiles . | . . . . . Explosions 6 | . . 6 . . Melee . | . . . . . Knockbacks . | . . . . . Impact . | . . . . . Kinetic . | . . . . . Secondary . | . . . . . Self-Inflicted Damage 36 | . . 36 . . Shots 1 | . . 1 . . Rammed 1 | . . 1 . . Targets Rammed 1 | . . 1 . . Kicked . | . . . . . Crushed . | . . . . . Highest Temperature 154 | . 154 129 . . Average Temperature 51 | . 45 56 . . Received Heat Transfer 186 | . 84 102 . . Siege Activations . | . . . . . Robots Corrupted 1 | . . 1 . . Combat Hostiles 1 | . . 1 . . Parts Fried 2 | . . 2 . . Impact Corruptions . | . . . . . Robots Melted . | . . . . . Combat Hostiles . | . . . . . Parts Melted 1 | . 1 . . . Heat Transferred 631 | . 581 50 . . Parts Sabotaged . | . . . . . Parts Stolen . | . . . . . Parts Stripped . | . . . . . Power Chain Reactions 2 | . 1 1 . . Missiles Intercepted . | . . . . . Alert | -11 -10 -10 -10 -9 ------- Run | Jun Mat Min Exi Min Peak Influence 310 | . 310 144 . . Initial 42 | . . 42 . . Average 55 | . 143 31 . . Maximum Alert Level 1 | . 1 . . . Low Security (%) 90 | . 58 100 . 100 Level 1 9 | . 41 . . . Level 2 . | . . . . . Level 3 . | . . . . . Level 4 . | . . . . . Level 5 . | . . . . . High Security . | . . . . . Max Security . | . . . . . Squads Dispatched 1 | . 1 . . . Investigation . | . . . . . Extermination . | . . . . . Reinforcement 1 | . 1 . . . Assault . | . . . . . Garrison . | . . . . . Intercept . | . . . . . Searches Triggered . | . . . . . Construction Impeded . | . . . . . Haulers Reinforced . | . . . . . Active Scanning Responses . | . . . . . Cargo Convoy Interrupts . | . . . . . Stealth | -11 -10 -10 -10 -9 --------- Run | Jun Mat Min Exi Min Distress Signals 1 | . 1 . . . Communications Jammed . | . . . . . Distress Signals . | . . . . . Times Spotted 22 | . 14 8 . . Peak Tracking Total 5 | . 5 2 . . Tactical Retreats 4 | . 2 2 . . Traps | -11 -10 -10 -10 -9 ------- Run | Jun Mat Min Exi Min Traps Triggered . | . . . . . Indirectly . | . . . . . Trap Hack Attempts . | . . . . . Triggered . | . . . . . Disarmed . | . . . . . Reprogrammed . | . . . . . Reused . | . . . . . Traps Extracted . | . . . . . Installed . | . . . . . Triggered . | . . . . . Machines | -11 -10 -10 -10 -9 ---------- Run | Jun Mat Min Exi Min Machines Disabled . | . . . . . Max in Single Turn . | . . . . . Machines Repaired . | . . . . . Machines Sabotaged . | . . . . . Overloaded Fab Kills . | . . . . . Hacking | -11 -10 -10 -10 -9 --------- Run | Jun Mat Min Exi Min Machines Accessed 6 | . 2 . 4 . Terminals 2 | . 2 . . . Fabricators . | . . . . . Repair Stations . | . . . . . Recycling Units . | . . . . . Scanalyzers . | . . . . . Garrison Access . | . . . . . Total Hacks 56 | . 7 . 49 . Successful 54 | . 5 . 49 . Failed 2 | . 2 . . . Catastrophic . | . . . . . Database Lockouts . | . . . . . Manual 1 | . . . 1 . Terminals 7 | . 7 . . . Fabricators . | . . . . . Repair Stations . | . . . . . Recycling Units . | . . . . . Scanalyzers . | . . . . . Garrison Access . | . . . . . Terminal Hacks 54 | . 5 . 49 . Record 49 | . . . 49 . Prototype ID Bank 1 | . 1 . . . Alert Level 1 | . 1 . . . Locate Traps 1 | . 1 . . . Transport Status 1 | . 1 . . . Hauler Manifests 1 | . 1 . . . Fabricator Hacks . | . . . . . Repair Station Hacks . | . . . . . Recycling Unit Hacks . | . . . . . Scanalyzer . | . . . . . Garrison Access Hacks . | . . . . . Unauthorized Hacks . | . . . . . Terminals . | . . . . . Fabricators . | . . . . . Repair Stations . | . . . . . Recycling Units . | . . . . . Scanalyzers . | . . . . . Garrison Access . | . . . . . Data Cores Recovered . | . . . . . Used . | . . . . . Hacking Detections . | . . . . . Full Trace Events . | . . . . . Feedback Events . | . . . . . Feedback Blocked . | . . . . . Robot Schematics Acquired . | . . . . . Robots Built . | . . . . . Authchips . | . . . . . Time . | . . . . . Total Robot Build Rating . | . . . . . Part Schematics Acquired . | . . . . . Parts Built . | . . . . . Authchips . | . . . . . Time . | . . . . . Total Part Build Rating . | . . . . . Parts Repaired . | . . . . . Time . | . . . . . Parts Recycled . | . . . . . Recycled Matter . | . . . . . Retrieved Matter . | . . . . . Retrieved Components . | . . . . . Parts Scanalyzed . | . . . . . Part Schematics Acquired . | . . . . . Parts Damaged . | . . . . . Bothacking | -11 -10 -10 -10 -9 ------------ Run | Jun Mat Min Exi Min Used RIF Installer . | . . . . . Robots Hacked . | . . . . . Non-combat . | . . . . . Combat . | . . . . . Robot Hacks Applied . | . . . . . Relay Couplers Released . | . . . . . Fabnet Peak Effective % . | . . . . . Robots Rewired . | . . . . . Allies Hacked . | . . . . . Hacks Repelled . | . . . . . Allies | -11 -10 -10 -10 -9 -------- Run | Jun Mat Min Exi Min Total Allies 1 | . . 1 . . Largest Group 1 | . . 1 1 . Highest-Rated Group 31 | . . 31 31 . Highest-Rated Ally 31 | . . 31 31 . Total Orders . | . . . . . Ally Attacks . | . . . . . Total Damage . | . . . . . Kills . | . . . . . Allies Corrupted . | . . . . . Allies Melted . | . . . . . Intel | -11 -10 -10 -10 -9 ------- Run | Jun Mat Min Exi Min Robot Analysis Total . | . . . . . Derelict Logs Recovered 2 | . . 1 . 1 Drone Launches . | . . . . . Drone Recoveries . | . . . . . Exploration | -11 -10 -10 -10 -9 ------------- Run | Jun Mat Min Exi Min Turns Passed 2818 | . 418 1330 990 80 Spaces Moved 1882 | 1 205 666 939 71 Core . | . . . . . Treads 805 | . 201 604 . . Legs 5 | 1 4 . . . Wheels 1072 | . . 62 939 71 Hover . | . . . . . Flight . | . . . . . Fastest Speed 95 | 120 120 95 105 105 Average Speed 136 | 120 159 176 105 105 Slowest Speed 240 | 120 160 240 105 105 Overloaded Moves . | . . . . . Propulsion Burnouts . | . . . . . Robots Hopped . | . . . . . Cave-ins Triggered . | . . . . . Time Travels 1 | . . . 1 . Exploration Rate (%) 52 | 2 51 97 93 19 Regions Visited 4 Branch Regions 3 Pre-discovered Areas 1 | . . . 1 . Known Exits Taken . | . . . . . Unknown Exits Taken 4 | 1 1 1 1 . Scrap Searched 1 | . . 1 . . Spaces Dug . | . . . . . Terrain Destroyed 9 | . 2 7 . . Melee . | . . . . . Projectile . | . . . . . AOE 9 | . 2 7 . . Terrain Rammed . | . . . . . Walls Destroyed . | . . . . . Machines Disabled . | . . . . . Actions | -11 -10 -10 -10 -9 --------- Run | Jun Mat Min Exi Min Total 2064 | . 258 787 943 76 Wait 123 | . 23 96 . 4 Move 1878 | . 204 665 938 71 Hop . | . . . . . Pick Up 3 | . 2 1 . . Fast Attach 7 | . 4 1 2 . Attach 4 | . . 4 . . Detach 1 | . . . . 1 Swap 2 | . 2 . . . Drop 8 | . 3 2 3 . Fire 37 | . 20 17 . . Melee . | . . . . . Ram . | . . . . . Kick . | . . . . . Crush 1 | . . 1 . . Escape Stasis . | . . . . . Rewire . | . . . . . Trap . | . . . . . Miscellaneous . | . . . . . Route ------- -11/Junkyard -10/Materials -10/Mines (discovered 3 exits: [*Mat x2] / *Exi) -10/Exiles (discovered 2 exits: [*Min x2]) -9/Mines (discovered 1 exit: [*Mat]) History --------- Turn | Location | Event 1 | -11/Junkyard | Discovered new exit (range 0) 1 | -11/Junkyard | Entered Materials 317 | -10/Materials | Build established: Mutant 382 | -10/Materials | Discovered new exit (range 6) 419 | -10/Materials | Entered Mines 564 | -10/Mines | Learned location of 1 exit from Materials 761 | -10/Mines | Discovered new exit (range 7) 1194 | -10/Mines | Discovered new exit (range 9) 1351 | -10/Mines | Found a damaged Exp. Sensor Array with a note attached 1385 | -10/Mines | Found Prototype Device 1595 | -10/Mines | Received a Mining Laser from a helpful Derelict 1744 | -10/Mines | Deemed a non-threat by the Exiles lab entrance 1745 | -10/Mines | Discovered new exit (range 5) 1749 | -10/Mines | Entered Exiles 1749 | -10/Exiles | Accompanied by 1 ally 1767 | -10/Exiles | Discovered new exit (range 15) 1804 | -10/Exiles | Met 8R-AWN 1819 | -10/Exiles | Met EX-HEX 1873 | -10/Exiles | Met EX-DEC 1926 | -10/Exiles | Met EX-BIN 1953 | -10/Exiles | Aligned with FarCom system 1954 | -10/Exiles | Given EX-Vault access code 1997 | -10/Exiles | Opened EX-Vault 2070 | -10/Exiles | Warned to stay clear of 0b10 Research branches 2115 | -10/Exiles | Learned location of Zion (-7) 2198 | -10/Exiles | Discovered new exit (range 14) 2279 | -10/Exiles | Visited The Gauntlet 2522 | -10/Exiles | Found Prototype Energy Cannon 2522 | -10/Exiles | Identified Latent Energy Streamer 2526 | -10/Exiles | Found Prototype Device 2526 | -10/Exiles | Identified Trap Reconfigurator 2529 | -10/Exiles | Found Prototype Device 2529 | -10/Exiles | Identified Chronowheel 2529 | -10/Exiles | Activated Chronowheel 2529 | -10/Exiles | Spacetime reconverged on an earlier point 2739 | -10/Exiles | Left Exiles lab with Latent Energy Streamer 2739 | -10/Exiles | Entered Mines 2776 | -9/Mines | Learned Materials garrison access intel 2789 | -9/Mines | Discovered new exit (range 8) 2819 | -9/Mines | Self-destructed Last Messages --------------- 02529_ Spacetime reconverges on this point. LOCATION=UNKNOWN GOAL=ESCAPE 02739_ Receiving FarCom transmissions... 02740_ K-01 Serf collects debris. 02752_ K-01 Serf cleans the Core Extractor. 02754_ K-01 Serf collects debris. 02765_ K-01 Serf cleans the Core Extractor. 02765_ K-01 Serf collects debris. 02769_ K-01 Serf cleans the Core Extractor. 02770_ K-01 Serf collects debris. 02776_ Acquired derelict log, extracted data. Data stored: Materials garrison access intel. 02779_ K-01 Serf collects debris. 02789_ EXIT=FOUND 02796_ K-01 Serf collects debris. 02809_ T-07 Excavator is excavating. 02811_ U-05 Engineer lays Concrete. 02811_ U-05 Engineer builds a Wall. 02814_ K-01 Serf collects debris. Map ----- +----------------------------------------------------+ | ????????????????????????????????????? | | ????????????????????????????????????? | | ????????????????????????????????????? | | ????????????????????????????????????? | | ????????????????????????????????????? | | ????????????????????????????????????? | | ????????????????????????????????????? | | ????????????????????????????????????? | | ????????????????????????????????????? | | ????????????????????????????????????? | | ????????????????????????????????????? | | ????????????????????????????????????? | | ????????????????????????????????????? | | ????????????????????????????????????? | | ????????????????????????????????????? | | ????????????????????????????????????? | | ????????????????????????????????????? | | ????????????????????????????????????? | | ????????????????????????????????????? | | ????????????????????????????????????? | | ???????????####?????#???????????????? | | ???????????# ???? #????##?????????? | | ???????????# #???? #???# ##????????? | | ???????????# #???? #??# #????????? | | ???????????# #???? #?# #????????? | | ?????????###@ ##??? ## #?????????? | | ????????## #### ###???????? | | ????????# ?????? | | ????????# ## #????????? | | ????????# ##???????????????? | | ????????# ##???????????????? | | ????????## ##??????????????? | | ?????????# t t ##?????????????? | | ?????????# k# r #?????????????? | | ?????# ## ## #????????????? | | ?????# ### #?# #???????????? | | ?????# ####??# #?? ??????????? | | ?????####??????# #??? ????????? | | ?????########??# #??? #???????? | | ????## ##?# #????# ###???????? | | ????# ### #????? #?????????? | | ????# #?????? #?????????? | | ????## ## ## ####??????? ?????????? | | ?????# ###### #????????????????????? | | ?????# #????# #????????????????????? | | ??#### ###??# #????????????????????? | | ??# #??# #????????????????????? | | ??# """ #??# #????????????????????? | | ??# """ #??# ????????????????????? | | ??# """ #??# #????????????????????? | +----------------------------------------------------+ Best States ------------- Heat Dissipation 25 Energy Generation 10 Energy Capacity 250 Matter Stores 300 Matter Capacity 300 Sight Range 16 Terrain Scan Density 10 Evasion (%) 41 Recoil Reduction 2 Item Schematics ----------------- None Robot Schematics ------------------ None Fabricated ------------ Nothing Alien Tech Used ----------------- None Achievements -------------- Librarian Challenges ------------ None Game ------ Seed DirtyFrostSpoofer Manual? 0 Play Time 00:24:38 Cumulative 26.1 hours Start 2023.03.11 @ 21:26:40 End 2023.03.11 @ 23:23:28 Sessions 2 Manual Loads 0 Difficulty Rogue Special Mode None Game No. 102 Rogue 102 Adventurer 0 Explorer 0 Win Type - Total 0 Types 0/0/0/0/0/0/0/0/0 Lore% 20 Gallery% 23 Achievement% 20 Wizard Run 0 Options --------- ASCII 0 Keyboard 0 Movement Arrows Keybinds 0 Fullscreen 1 Font 18/SmallcapsGlow Map View 76x50 Tactical HUD 1 Map Filters NONE Filters NONE Steam 1 RUN: d6f40d2e-779a-4e7a-bfd4-b4d758a83181